[Event "*** Titled Tuesday Blitz"]
[Site "Chess.com"]
[Date "2021.03.30"]
[Round "7"]
[White "QuintilianoR"]
[Black "Ermito2020"]
[Result "0-1"]
[WhiteElo "2706"]
[BlackElo "2527"]
[TimeControl "180+1"]
[EndTime "11:18:04 PDT"]
[Termination "Ermito2020 won by resignation"]

1. Nf3 {[%clk 0:03:00.9]} 1... Nf6 {[%clk 0:02:29.1]} 2. c4 {[%clk 0:03:00.2]}
2... g6 {[%clk 0:02:28.5]} 3. Nc3 {[%clk 0:02:59.7]} 3... Bg7 {[%clk 0:02:29.4]}
4. d4 {[%clk 0:03:00.2]} 4... d6 {[%clk 0:02:29.6]} 5. e4 {[%clk 0:02:59.3]}
5... O-O {[%clk 0:02:30]} 6. Be2 {[%clk 0:02:59.9]} 6... e5 {[%clk 0:02:29.8]}
7. O-O {[%clk 0:03:00.4]} 7... Nc6 {[%clk 0:02:29.8]} 8. d5 {[%clk 0:03:00.5]}
8... Ne7 {[%clk 0:02:30.1]} 9. b4 {[%clk 0:03:01.1]} 9... a5 {[%clk 0:02:28.4]}
10. Ba3 {[%clk 0:03:01]} 10... axb4 {[%clk 0:02:25.2]} 11. Bxb4 {[%clk
0:03:01.9]} 11... b6 {[%clk 0:02:23.6]} 12. a4 {[%clk 0:03:01.8]} 12... Nh5
{[%clk 0:02:17.7]} 13. g3 {[%clk 0:02:52.5]} 13... f5 {[%clk 0:02:12.6]} 14. a5
{[%clk 0:02:42.8]} 14... bxa5 {[%clk 0:02:06.1]} 15. Bxa5 {[%clk 0:02:38.4]}
15... Bd7 {[%clk 0:01:58.4]} 16. c5 {[%clk 0:02:25.5]} 16... fxe4 {[%clk
0:01:47.9]} 17. cxd6 {[%clk 0:01:51.6]} 17... exf3 {[%clk 0:01:46.4]} 18. dxe7
{[%clk 0:01:51.3]} 18... Qxe7 {[%clk 0:01:46.2]} 19. Bxf3 {[%clk 0:01:47.7]}
19... e4 {[%clk 0:01:42.7]} 20. Bxh5 {[%clk 0:01:04.2]} 20... gxh5 {[%clk
0:01:03.5]} 21. d6 {[%clk 0:00:30.3]} 21... Qxd6 {[%clk 0:00:50.5]} 22. Qxh5
{[%clk 0:00:28.5]} 22... Rf5 {[%clk 0:00:47]} 23. Qd1 {[%clk 0:00:13]} 23...
Rfxa5 {[%clk 0:00:45.1]} 24. Rxa5 {[%clk 0:00:12.5]} 24... Rxa5 {[%clk 0:00:46]}
25. Nxe4 {[%clk 0:00:12.5]} 25... Qxd1 {[%clk 0:00:44.7]} 26. Rxd1 {[%clk
0:00:13.4]} 26... Bg4 {[%clk 0:00:44.7]} 27. Rd8+ {[%clk 0:00:11.5]} 27... Kf7
{[%clk 0:00:44.2]} 28. h3 {[%clk 0:00:09.6]} 28... Bf5 {[%clk 0:00:40.9]} 29.
Nd2 {[%clk 0:00:08.7]} 29... Ra1+ {[%clk 0:00:39.8]} 30. Kg2 {[%clk 0:00:08.7]}
30... Rd1 {[%clk 0:00:39.3]} 31. g4 {[%clk 0:00:09.3]} 31... Be4+ {[%clk
0:00:36.6]} 32. f3 {[%clk 0:00:08.3]} 32... Bc3 {[%clk 0:00:25]} 33. Rc8 {[%clk
0:00:08]} 33... Rxd2+ {[%clk 0:00:23.3]} 34. Kg3 {[%clk 0:00:07.7]} 34... Be5+
{[%clk 0:00:23]} 0-1

[Event "*** Titled Tuesday Blitz"]
[Site "Chess.com"]
[Date "2021.03.30"]
[Round "7"]
[White "annacramling"]
[Black "malakismayil"]
[Result "0-1"]
[WhiteElo "2089"]
[BlackElo "2321"]
[TimeControl "180+1"]
[EndTime "11:18:04 PDT"]
[Termination "malakismayil won on time"]

1. d4 {[%clk 0:03:00.9]} 1... Nf6 {[%clk 0:02:58.4]} 2. c4 {[%clk 0:02:55.6]}
2... e6 {[%clk 0:02:58.6]} 3. Nc3 {[%clk 0:02:54.7]} 3... Bb4 {[%clk 0:02:58.5]}
4. Qc2 {[%clk 0:02:55.1]} 4... O-O {[%clk 0:02:56]} 5. e4 {[%clk 0:02:55.4]}
5... b6 {[%clk 0:02:53.5]} 6. e5 {[%clk 0:02:55.2]} 6... Ne8 {[%clk 0:02:49.9]}
7. Bd3 {[%clk 0:02:55]} 7... f5 {[%clk 0:02:49.3]} 8. Nf3 {[%clk 0:02:47.4]}
8... Bb7 {[%clk 0:02:45.5]} 9. O-O {[%clk 0:02:44.1]} 9... Bxf3 {[%clk
0:02:43.6]} 10. gxf3 {[%clk 0:02:45]} 10... Bxc3 {[%clk 0:02:42.8]} 11. bxc3
{[%clk 0:02:43.2]} 11... Qh4 {[%clk 0:02:37.5]} 12. f4 {[%clk 0:02:24.9]} 12...
Nc6 {[%clk 0:02:19.9]} 13. f3 {[%clk 0:02:20.7]} 13... Kh8 {[%clk 0:02:04.9]}
14. Ba3 {[%clk 0:01:48.6]} 14... Rg8 {[%clk 0:01:53.1]} 15. d5 {[%clk
0:01:18.7]} 15... Nd8 {[%clk 0:01:28]} 16. Rf2 {[%clk 0:00:53.2]} 16... Qxf4
{[%clk 0:01:20.9]} 17. Qe2 {[%clk 0:00:45.1]} 17... Nf7 {[%clk 0:01:17.4]} 18.
Re1 {[%clk 0:00:35.1]} 18... Ng5 {[%clk 0:00:50.5]} 19. Qf1 {[%clk 0:00:34.8]}
19... Qh4 {[%clk 0:00:29.2]} 20. Kh1 {[%clk 0:00:34.6]} 20... Nh3 {[%clk
0:00:25.7]} 21. Rg2 {[%clk 0:00:21.4]} 21... Nf4 {[%clk 0:00:25.5]} 22. Rg3
{[%clk 0:00:17]} 22... g5 {[%clk 0:00:18.8]} 23. Bc2 {[%clk 0:00:11.5]} 23...
Ng7 {[%clk 0:00:18]} 24. Be7 {[%clk 0:00:10.7]} 24... Ngh5 {[%clk 0:00:17.2]}
25. Rg1 {[%clk 0:00:05.5]} 25... Rae8 {[%clk 0:00:14.4]} 26. Bf6+ {[%clk
0:00:05]} 26... Nxf6 {[%clk 0:00:13.5]} 27. exf6 {[%clk 0:00:05.9]} 27... Rgf8
{[%clk 0:00:13.5]} 28. Bxf5 {[%clk 0:00:02.2]} 28... exf5 {[%clk 0:00:12.3]} 29.
Rxe8 {[%clk 0:00:01.2]} 29... Rxe8 {[%clk 0:00:13.2]} 0-1

[Event "*** Titled Tuesday Blitz"]
[Site "Chess.com"]
[Date "2021.03.30"]
[Round "7"]
[White "Kretov_Evgenij"]
[Black "zmeeed67"]
[Result "1-0"]
[WhiteElo "2565"]
[BlackElo "2414"]
[TimeControl "180+1"]
[EndTime "11:18:11 PDT"]
[Termination "Kretov_Evgenij won by resignation"]

1. d4 {[%clk 0:03:00.9]} 1... d5 {[%clk 0:03:00.2]} 2. c4 {[%clk 0:03:00.9]}
2... e6 {[%clk 0:03:00.8]} 3. Nc3 {[%clk 0:03:00.8]} 3... c6 {[%clk 0:03:01.2]}
4. e3 {[%clk 0:03:00.3]} 4... Nf6 {[%clk 0:03:01.5]} 5. Nf3 {[%clk 0:03:00]}
5... Nbd7 {[%clk 0:03:02.1]} 6. Bd3 {[%clk 0:03:00]} 6... dxc4 {[%clk
0:03:02.7]} 7. Bxc4 {[%clk 0:03:00.3]} 7... b5 {[%clk 0:03:03.6]} 8. Be2 {[%clk
0:03:00.5]} 8... Bb7 {[%clk 0:03:04.2]} 9. O-O {[%clk 0:03:00.1]} 9... a6 {[%clk
0:03:03.1]} 10. e4 {[%clk 0:03:00.2]} 10... c5 {[%clk 0:02:47.4]} 11. e5 {[%clk
0:03:00.1]} 11... Nd5 {[%clk 0:02:47.1]} 12. Ne4 {[%clk 0:03:00.3]} 12... cxd4
{[%clk 0:02:47.1]} 13. a4 {[%clk 0:02:58.3]} 13... b4 {[%clk 0:02:42.5]} 14. Bg5
{[%clk 0:02:55.9]} 14... Qb8 {[%clk 0:02:42.3]} 15. Qxd4 {[%clk 0:02:54]} 15...
Qa7 {[%clk 0:02:24.5]} 16. Qd2 {[%clk 0:02:50.1]} 16... Nc5 {[%clk 0:02:17.8]}
17. Nxc5 {[%clk 0:02:46.6]} 17... Bxc5 {[%clk 0:02:17.8]} 18. Rac1 {[%clk
0:02:39.6]} 18... Rc8 {[%clk 0:02:05.2]} 19. Rc4 {[%clk 0:02:32.9]} 19... h6
{[%clk 0:01:45.6]} 20. Bh4 {[%clk 0:02:31.3]} 20... Be7 {[%clk 0:01:35.5]} 21.
Bxe7 {[%clk 0:02:21.5]} 21... Kxe7 {[%clk 0:01:35.5]} 22. Rfc1 {[%clk
0:02:09.1]} 22... Rxc4 {[%clk 0:01:31.5]} 23. Bxc4 {[%clk 0:02:05.8]} 23... Rc8
{[%clk 0:01:11.2]} 24. Nd4 {[%clk 0:01:44.4]} 24... Qc5 {[%clk 0:01:02.2]} 25.
Nb3 {[%clk 0:01:41.5]} 25... Qb6 {[%clk 0:00:49]} 26. a5 {[%clk 0:01:40.1]}
26... Qd8 {[%clk 0:00:34.7]} 27. Bxd5 {[%clk 0:01:32.7]} 27... Rxc1+ {[%clk
0:00:34.8]} 28. Qxc1 {[%clk 0:01:15.5]} 28... Qxd5 {[%clk 0:00:35.7]} 29. Qc5+
{[%clk 0:01:15.6]} 29... Kd7 {[%clk 0:00:24.2]} 30. Qxd5+ {[%clk 0:01:12.2]}
30... Bxd5 {[%clk 0:00:25.1]} 31. Nc5+ {[%clk 0:01:10.5]} 31... Kc6 {[%clk
0:00:19.6]} 32. Nxa6 {[%clk 0:01:10.4]} 32... Kb5 {[%clk 0:00:19.4]} 33. Nc7+
{[%clk 0:01:07.9]} 33... Kxa5 {[%clk 0:00:19.8]} 34. Nxd5 {[%clk 0:01:03.8]}
34... exd5 {[%clk 0:00:20.7]} 35. f4 {[%clk 0:01:04.2]} 35... Kb5 {[%clk
0:00:21.1]} 36. f5 {[%clk 0:01:01.6]} 36... Kc5 {[%clk 0:00:19]} 37. Kf2 {[%clk
0:01:01.4]} 37... d4 {[%clk 0:00:18]} 38. Kf3 {[%clk 0:00:57.6]} 38... Kd5
{[%clk 0:00:18.2]} 39. e6 {[%clk 0:00:56.5]} 39... fxe6 {[%clk 0:00:17.6]} 40.
fxe6 {[%clk 0:00:56.8]} 40... Kxe6 {[%clk 0:00:15.9]} 41. Ke4 {[%clk 0:00:57.4]}
41... g5 {[%clk 0:00:11.4]} 42. Kxd4 {[%clk 0:00:57.7]} 42... Kf5 {[%clk
0:00:11.8]} 43. Kc4 {[%clk 0:00:58.1]} 43... Kf4 {[%clk 0:00:08.3]} 44. Kxb4
{[%clk 0:00:58.7]} 44... Ke3 {[%clk 0:00:08.8]} 45. Kc3 {[%clk 0:00:58.5]} 45...
Kf2 {[%clk 0:00:09.2]} 46. g4 {[%clk 0:00:58.5]} 46... Kf3 {[%clk 0:00:07]} 47.
b4 {[%clk 0:00:58.8]} 47... Kxg4 {[%clk 0:00:07.4]} 48. b5 {[%clk 0:00:59.5]}
48... Kh3 {[%clk 0:00:07.9]} 49. b6 {[%clk 0:01:00.1]} 49... Kxh2 {[%clk
0:00:08.5]} 50. b7 {[%clk 0:01:00.6]} 50... g4 {[%clk 0:00:09.4]} 51. b8=Q+
{[%clk 0:01:00.9]} 51... g3 {[%clk 0:00:10.3]} 52. Qf4 {[%clk 0:01:00.2]} 52...
h5 {[%clk 0:00:08.5]} 53. Qh4+ {[%clk 0:01:00.3]} 53... Kg2 {[%clk 0:00:08.9]}
54. Qxh5 {[%clk 0:01:00.6]} 1-0

[Event "*** Titled Tuesday Blitz"]
[Site "Chess.com"]
[Date "2021.03.30"]
[Round "7"]
[White "fabianvivasz"]
[Black "AldokhinIvan"]
[Result "1-0"]
[WhiteElo "2408"]
[BlackElo "2514"]
[TimeControl "180+1"]
[EndTime "11:18:11 PDT"]
[Termination "fabianvivasz won by checkmate"]

1. c4 {[%clk 0:03:00.9]} 1... Nf6 {[%clk 0:02:59.6]} 2. Nf3 {[%clk 0:02:58]}
2... g6 {[%clk 0:02:53.3]} 3. g3 {[%clk 0:02:54.9]} 3... Bg7 {[%clk 0:02:54.2]}
4. Bg2 {[%clk 0:02:54.9]} 4... O-O {[%clk 0:02:54]} 5. O-O {[%clk 0:02:54.4]}
5... d6 {[%clk 0:02:54.9]} 6. d4 {[%clk 0:02:44.8]} 6... Nc6 {[%clk 0:02:55.8]}
7. Nc3 {[%clk 0:02:43.4]} 7... Bf5 {[%clk 0:02:54]} 8. Re1 {[%clk 0:02:28.5]}
8... Ne4 {[%clk 0:02:53.7]} 9. Nh4 {[%clk 0:02:14.4]} 9... Nxd4 {[%clk
0:02:45.2]} 10. Nxe4 {[%clk 0:02:07.2]} 10... Bxe4 {[%clk 0:02:28]} 11. Bxe4
{[%clk 0:02:08.1]} 11... c6 {[%clk 0:02:25.4]} 12. Bg2 {[%clk 0:02:03.3]} 12...
e5 {[%clk 0:02:00.5]} 13. b3 {[%clk 0:01:48.1]} 13... f5 {[%clk 0:00:49.2]} 14.
e3 {[%clk 0:01:18.9]} 14... Ne6 {[%clk 0:00:47.4]} 15. Ba3 {[%clk 0:01:18.4]}
15... e4 {[%clk 0:00:26.3]} 16. Rc1 {[%clk 0:01:10.8]} 16... Be5 {[%clk
0:00:24.2]} 17. f4 {[%clk 0:01:02.2]} 17... exf3 {[%clk 0:00:12.6]} 18. Nxf3
{[%clk 0:01:02]} 18... Qa5 {[%clk 0:00:13.2]} 19. Nxe5 {[%clk 0:01:00.5]} 19...
Qxa3 {[%clk 0:00:13.4]} 20. Nf3 {[%clk 0:00:52]} 20... Rae8 {[%clk 0:00:13.3]}
21. e4 {[%clk 0:00:42.1]} 21... Qc5+ {[%clk 0:00:12.3]} 22. Kh1 {[%clk
0:00:41.2]} 22... f4 {[%clk 0:00:11.9]} 23. Qd2 {[%clk 0:00:37.1]} 23... g5
{[%clk 0:00:10.7]} 24. b4 {[%clk 0:00:34.9]} 24... Qb6 {[%clk 0:00:08]} 25. Bh3
{[%clk 0:00:20]} 25... fxg3 {[%clk 0:00:06.8]} 26. Nxg5 {[%clk 0:00:19.8]} 26...
Rf2 {[%clk 0:00:05.1]} 27. Re2 {[%clk 0:00:14.6]} 27... Rxe2 {[%clk 0:00:03.2]}
28. Bxe6+ {[%clk 0:00:14.6]} 28... Rxe6 {[%clk 0:00:01.6]} 29. Qxe2 {[%clk
0:00:15.1]} 29... Rg6 {[%clk 0:00:02.5]} 30. Qh5 {[%clk 0:00:05.2]} 30... Qe3
{[%clk 0:00:02.8]} 31. Qxh7+ {[%clk 0:00:04.7]} 31... Kf8 {[%clk 0:00:02.7]} 32.
Qf7# {[%clk 0:00:05.6]} 1-0

[Event "*** Titled Tuesday Blitz"]
[Site "Chess.com"]
[Date "2021.03.30"]
[Round "7"]
[White "Spriteball"]
[Black "Andrii_Prydun"]
[Result "0-1"]
[WhiteElo "2362"]
[BlackElo "2277"]
[TimeControl "180+1"]
[EndTime "11:18:11 PDT"]
[Termination "Andrii_Prydun won by checkmate"]

1. d4 {[%clk 0:03:00.9]} 1... d5 {[%clk 0:03:00.1]} 2. c4 {[%clk 0:03:01]} 2...
c6 {[%clk 0:03:01]} 3. Nf3 {[%clk 0:03:00.9]} 3... Nf6 {[%clk 0:03:01.5]} 4. Nc3
{[%clk 0:03:00.6]} 4... e6 {[%clk 0:03:02]} 5. e3 {[%clk 0:03:00.4]} 5... Nbd7
{[%clk 0:03:00.5]} 6. Bd3 {[%clk 0:03:00.5]} 6... Be7 {[%clk 0:02:59.2]} 7. O-O
{[%clk 0:02:58.1]} 7... O-O {[%clk 0:02:59.2]} 8. Qc2 {[%clk 0:02:54]} 8... b6
{[%clk 0:02:58.9]} 9. e4 {[%clk 0:02:50.7]} 9... dxe4 {[%clk 0:02:59]} 10. Nxe4
{[%clk 0:02:51]} 10... Bb7 {[%clk 0:02:58.6]} 11. b3 {[%clk 0:02:46.4]} 11... c5
{[%clk 0:02:56.7]} 12. Bb2 {[%clk 0:02:45.1]} 12... cxd4 {[%clk 0:02:56.3]} 13.
Bxd4 {[%clk 0:02:43.8]} 13... Nxe4 {[%clk 0:02:41.2]} 14. Bxe4 {[%clk
0:02:43.6]} 14... Bxe4 {[%clk 0:02:40.9]} 15. Qxe4 {[%clk 0:02:44.5]} 15... Nf6
{[%clk 0:02:39.8]} 16. Qe2 {[%clk 0:02:40.7]} 16... Qc8 {[%clk 0:02:38.2]} 17.
Rfd1 {[%clk 0:02:37.4]} 17... Rd8 {[%clk 0:02:37.2]} 18. a3 {[%clk 0:02:32]}
18... Qb7 {[%clk 0:02:35]} 19. b4 {[%clk 0:02:30.3]} 19... Rd7 {[%clk 0:02:34]}
20. Bb2 {[%clk 0:02:27.3]} 20... Rad8 {[%clk 0:02:33.4]} 21. Ne5 {[%clk
0:02:16.4]} 21... Rxd1+ {[%clk 0:02:33.3]} 22. Rxd1 {[%clk 0:02:17.3]} 22...
Rxd1+ {[%clk 0:02:04.3]} 23. Qxd1 {[%clk 0:02:18.2]} 23... Qe4 {[%clk
0:02:04.3]} 24. h3 {[%clk 0:02:00.2]} 24... h6 {[%clk 0:01:51.6]} 25. Qd3 {[%clk
0:01:46.9]} 25... Qe1+ {[%clk 0:01:49.7]} 26. Kh2 {[%clk 0:01:47]} 26... Qxf2
{[%clk 0:01:44.7]} 27. Bc1 {[%clk 0:01:38.1]} 27... Qe1 {[%clk 0:01:34.8]} 28.
Bb2 {[%clk 0:01:37.7]} 28... Ne4 {[%clk 0:01:22.4]} 29. Qf3 {[%clk 0:01:25.5]}
29... f5 {[%clk 0:00:57.6]} 30. Qh5 {[%clk 0:00:58.3]} 30... Qg3+ {[%clk
0:00:57.3]} 31. Kh1 {[%clk 0:00:56.6]} 31... Nd6 {[%clk 0:00:47.3]} 32. c5
{[%clk 0:00:48.6]} 32... bxc5 {[%clk 0:00:46.8]} 33. bxc5 {[%clk 0:00:48.5]}
33... Bf6 {[%clk 0:00:47.2]} 34. Qe2 {[%clk 0:00:13.9]} 34... Ne4 {[%clk
0:00:43.4]} 35. Qc4 {[%clk 0:00:05.4]} 35... Nf2+ {[%clk 0:00:36]} 36. Kg1
{[%clk 0:00:05.1]} 36... Nxh3+ {[%clk 0:00:36.6]} 37. Kh1 {[%clk 0:00:05.5]}
37... Qe1+ {[%clk 0:00:30.5]} 38. Kh2 {[%clk 0:00:04.9]} 38... Bxe5+ {[%clk
0:00:29.1]} 39. Bxe5 {[%clk 0:00:05.8]} 39... Qxe5+ {[%clk 0:00:28.8]} 40. Kxh3
{[%clk 0:00:06.3]} 40... g5 {[%clk 0:00:26]} 41. c6 {[%clk 0:00:04.4]} 41... g4+
{[%clk 0:00:26]} 42. Kh4 {[%clk 0:00:03.3]} 42... Qh2# {[%clk 0:00:26.5]} 0-1

[Event "*** Titled Tuesday Blitz"]
[Site "Chess.com"]
[Date "2021.03.30"]
[Round "7"]
[White "BvsN"]
[Black "Susik_Gaboyan"]
[Result "1-0"]
[WhiteElo "2378"]
[BlackElo "2243"]
[TimeControl "180+1"]
[EndTime "11:18:12 PDT"]
[Termination "BvsN won by resignation"]

1. c4 {[%clk 0:03:00.9]} 1... Nf6 {[%clk 0:02:58.4]} 2. Nc3 {[%clk 0:03:00.7]}
2... d5 {[%clk 0:02:57.6]} 3. cxd5 {[%clk 0:03:00.5]} 3... Nxd5 {[%clk
0:02:58.5]} 4. Nf3 {[%clk 0:03:01.1]} 4... g6 {[%clk 0:02:58.2]} 5. h4 {[%clk
0:03:01.4]} 5... h6 {[%clk 0:02:48.1]} 6. e4 {[%clk 0:03:01.3]} 6... Nxc3 {[%clk
0:02:47.2]} 7. dxc3 {[%clk 0:03:01.7]} 7... Bg7 {[%clk 0:02:47.9]} 8. Qxd8+
{[%clk 0:03:01.1]} 8... Kxd8 {[%clk 0:02:36.6]} 9. Bf4 {[%clk 0:03:02]} 9... Nc6
{[%clk 0:02:32.1]} 10. Bc4 {[%clk 0:02:56.7]} 10... e5 {[%clk 0:02:22.4]} 11.
Be3 {[%clk 0:02:49.7]} 11... Be6 {[%clk 0:02:08.3]} 12. Bxe6 {[%clk 0:02:49.1]}
12... fxe6 {[%clk 0:02:09.2]} 13. Nd2 {[%clk 0:02:44.8]} 13... Ke7 {[%clk
0:02:05.8]} 14. Ke2 {[%clk 0:02:42]} 14... Rad8 {[%clk 0:02:02.3]} 15. a4 {[%clk
0:02:40.9]} 15... Rd7 {[%clk 0:01:56.7]} 16. Nc4 {[%clk 0:02:39.7]} 16... Rhd8
{[%clk 0:01:54.7]} 17. Rad1 {[%clk 0:02:39.9]} 17... Rxd1 {[%clk 0:01:48.4]} 18.
Rxd1 {[%clk 0:02:39.9]} 18... Rxd1 {[%clk 0:01:49.1]} 19. Kxd1 {[%clk
0:02:39.7]} 19... h5 {[%clk 0:01:50]} 20. Ke2 {[%clk 0:02:39.4]} 20... Kd7
{[%clk 0:01:48.4]} 21. b4 {[%clk 0:02:38.3]} 21... a6 {[%clk 0:01:44.8]} 22. f3
{[%clk 0:02:31.6]} 22... Ne7 {[%clk 0:01:41.3]} 23. a5 {[%clk 0:02:23.2]} 23...
Nc8 {[%clk 0:01:40.5]} 24. Bf2 {[%clk 0:02:20.8]} 24... Nd6 {[%clk 0:01:39.9]}
25. Kd3 {[%clk 0:02:19.1]} 25... Nxc4 {[%clk 0:01:21.8]} 26. Kxc4 {[%clk
0:02:19.1]} 26... Bf6 {[%clk 0:01:22.7]} 27. Bg3 {[%clk 0:02:15]} 27... Kc6
{[%clk 0:01:18.4]} 28. Bf2 {[%clk 0:02:13.9]} 28... Be7 {[%clk 0:01:14.1]} 29.
Be1 {[%clk 0:02:10.6]} 29... Bf6 {[%clk 0:01:12.7]} 30. g3 {[%clk 0:02:09.4]}
30... Be7 {[%clk 0:01:08.2]} 31. Bd2 {[%clk 0:02:09.4]} 31... Bf6 {[%clk
0:01:01.6]} 32. Bh6 {[%clk 0:02:09]} 32... Kd6 {[%clk 0:00:51.2]} 33. Bf8+
{[%clk 0:02:08]} 33... Kc6 {[%clk 0:00:49.5]} 34. Kb3 {[%clk 0:02:01.3]} 34...
Kd7 {[%clk 0:00:43.3]} 35. c4 {[%clk 0:01:59.8]} 35... Kc6 {[%clk 0:00:38.9]}
36. Ka4 {[%clk 0:01:58.6]} 36... Kd7 {[%clk 0:00:37]} 37. b5 {[%clk 0:01:57.5]}
37... Kc8 {[%clk 0:00:24.6]} 38. Kb4 {[%clk 0:01:50]} 38... Kd7 {[%clk
0:00:20.1]} 39. c5 {[%clk 0:01:43.5]} 39... axb5 {[%clk 0:00:18.8]} 40. Kxb5
{[%clk 0:01:42.6]} 40... c6+ {[%clk 0:00:14]} 41. Kb6 {[%clk 0:01:38.6]} 41...
Kc8 {[%clk 0:00:13.3]} 42. a6 {[%clk 0:01:35.9]} 42... Bd8+ {[%clk 0:00:11.5]}
43. Ka7 {[%clk 0:01:35]} 43... bxa6 {[%clk 0:00:09.3]} 44. Kxa6 {[%clk
0:01:35.3]} 44... Kd7 {[%clk 0:00:09.6]} 45. Bd6 {[%clk 0:01:29.2]} 45... Bf6
{[%clk 0:00:06.7]} 46. Kb7 {[%clk 0:01:28.4]} 46... Bg7 {[%clk 0:00:06.1]} 47.
g4 {[%clk 0:01:23]} 47... Bf6 {[%clk 0:00:05.6]} 48. g5 {[%clk 0:01:22.2]} 48...
Bg7 {[%clk 0:00:06.2]} 49. Kb8 {[%clk 0:01:13.3]} 49... Bh8 {[%clk 0:00:05.6]}
50. Bf8 {[%clk 0:01:07.4]} 50... Ke8 {[%clk 0:00:04.7]} 51. Bh6 {[%clk
0:00:57.2]} 51... Kd7 {[%clk 0:00:04.7]} 52. Kb7 {[%clk 0:00:57.2]} 52... Ke7
{[%clk 0:00:01.9]} 53. Kxc6 {[%clk 0:00:56.1]} 1-0

[Event "*** Titled Tuesday Blitz"]
[Site "Chess.com"]
[Date "2021.03.30"]
[Round "7"]
[White "MuhittinBuker"]
[Black "ajdemipopushi"]
[Result "0-1"]
[WhiteElo "2202"]
[BlackElo "2346"]
[TimeControl "180+1"]
[EndTime "11:18:14 PDT"]
[Termination "ajdemipopushi won on time"]

1. d4 {[%clk 0:03:00.9]} 1... Nf6 {[%clk 0:02:59.3]} 2. c4 {[%clk 0:02:59.8]}
2... c5 {[%clk 0:02:59.5]} 3. d5 {[%clk 0:02:53.3]} 3... b5 {[%clk 0:02:59.7]}
4. a4 {[%clk 0:02:53.3]} 4... b4 {[%clk 0:02:59.2]} 5. b3 {[%clk 0:02:49.4]}
5... g6 {[%clk 0:02:59.2]} 6. Bb2 {[%clk 0:02:49.7]} 6... Bg7 {[%clk 0:02:59.6]}
7. Nd2 {[%clk 0:02:50.2]} 7... O-O {[%clk 0:02:52.3]} 8. e4 {[%clk 0:02:50.1]}
8... e6 {[%clk 0:02:51.2]} 9. Ngf3 {[%clk 0:02:47.1]} 9... exd5 {[%clk
0:02:49.6]} 10. exd5 {[%clk 0:02:17.6]} 10... Re8+ {[%clk 0:02:49]} 11. Be2
{[%clk 0:02:15.6]} 11... Qe7 {[%clk 0:02:49.3]} 12. Kf1 {[%clk 0:02:12]} 12...
d6 {[%clk 0:02:44.6]} 13. Bd3 {[%clk 0:02:10.7]} 13... Nbd7 {[%clk 0:02:22.9]}
14. Qc2 {[%clk 0:02:08.5]} 14... Nh5 {[%clk 0:02:19.3]} 15. Bxg7 {[%clk
0:02:04.4]} 15... Kxg7 {[%clk 0:02:15.9]} 16. Re1 {[%clk 0:02:03.8]} 16... Qf8
{[%clk 0:02:15.6]} 17. Rxe8 {[%clk 0:01:51.6]} 17... Qxe8 {[%clk 0:02:15.3]} 18.
g3 {[%clk 0:01:51.6]} 18... Ne5 {[%clk 0:02:05]} 19. Kg2 {[%clk 0:01:51.1]}
19... Bg4 {[%clk 0:02:04.4]} 20. Re1 {[%clk 0:01:44.3]} 20... f6 {[%clk
0:01:15]} 21. h3 {[%clk 0:01:23.4]} 21... Bd7 {[%clk 0:01:14.4]} 22. Nxe5 {[%clk
0:01:06.4]} 22... fxe5 {[%clk 0:01:14.2]} 23. Ne4 {[%clk 0:01:06.3]} 23... Qf8
{[%clk 0:01:08.7]} 24. Qd2 {[%clk 0:00:46.9]} 24... h6 {[%clk 0:01:06.2]} 25.
Rf1 {[%clk 0:00:33.2]} 25... Re8 {[%clk 0:01:05.2]} 26. Qc2 {[%clk 0:00:21.2]}
26... Bf5 {[%clk 0:00:58.2]} 27. Kh2 {[%clk 0:00:13.7]} 27... Bxe4 {[%clk
0:00:39.4]} 28. Bxe4 {[%clk 0:00:13.1]} 28... Qf6 {[%clk 0:00:39.2]} 29. Qe2
{[%clk 0:00:09.1]} 29... Rf8 {[%clk 0:00:37.7]} 30. f3 {[%clk 0:00:06.5]} 30...
Kh7 {[%clk 0:00:36.6]} 31. Kg2 {[%clk 0:00:06.1]} 31... Rf7 {[%clk 0:00:35.8]}
32. Qe3 {[%clk 0:00:06.1]} 32... Ng7 {[%clk 0:00:34.9]} 33. g4 {[%clk
0:00:04.8]} 33... Kg8 {[%clk 0:00:33]} 34. Kg3 {[%clk 0:00:04]} 34... Ne8 {[%clk
0:00:32]} 35. Qxh6 {[%clk 0:00:03]} 35... Rg7 {[%clk 0:00:30.8]} 36. Qe3 {[%clk
0:00:02.2]} 36... Kf8 {[%clk 0:00:30.6]} 37. f4 {[%clk 0:00:02]} 37... Ke7
{[%clk 0:00:29.1]} 38. Rf3 {[%clk 0:00:01.3]} 38... Rh7 {[%clk 0:00:27.1]} 0-1